fUSD/lending_fUSD_20240525
["ID","MTS","AMOUNT","RATE_DAILY","PERIOD"]
[327937118,1716677446404,-168.31319421,0.00026661,2]
[327937120,1716677446413,-168.31319421,0.00026693,2]
[327937121,1716677446422,-900.0,0.00026697,2]
[327937122,1716677446432,-800.0,0.00026697,2]
[327937123,1716677446441,-500.0,0.00026715,2]
[327937124,1716677446450,-226.25084365,0.0002677,2]
[327937125,1716677446459,-151.11015037,0.00026774,2]
[327937126,1716677446468,-17000.0,0.00026798,3]
[327937127,1716677446478,-226.25084365,0.00026836,2]
[327937128,1716677446488,-1082.21845296,0.00026852,2]
[327937129,1716677446497,-168.31319421,0.00026874,2]
[327937130,1716677446506,-6772.86623355,0.00026898,2]
[327937131,1716677446515,-1012.79,0.00026912,2]
[327937132,1716677446523,-170.28,0.00026921,2]
[327937133,1716677446533,-1000.0,0.00026924,2]
[327937134,1716677446544,-1024.9619371,0.00026947,2]
[327937135,1716677446554,-159.534243,0.00026952,2]
[327937136,1716677446565,-152.278991,0.00026952,2]
[327937137,1716677446575,-156.312705,0.00026952,2]
[327937138,1716677446584,-172.73795,0.00026952,2]
[327937139,1716677446594,-186.053426,0.00026952,2]
[327937140,1716677446604,-157.569703,0.00026952,2]
[327937141,1716677446614,-176.060258,0.00026952,2]
[327937142,1716677446623,-194.053212,0.00026952,2]
[327937143,1716677446634,-159.534243,0.00026952,2]
[327937144,1716677446645,-156.312705,0.00026952,2]
[327937145,1716677446654,-296.712223,0.00026952,2]
[327937146,1716677446667,-172.73795,0.00026952,2]
[327937147,1716677446677,-186.053426,0.00026952,2]
[327937148,1716677446687,-403.703758,0.00026952,2]
[327937149,1716677446700,-170.337097,0.00026952,2]
[327937150,1716677446711,-340.31622,0.00026952,2]
[327937151,1716677446722,-705.542347,0.00026952,2]
[327937152,1716677446733,-644.391327,0.00026952,2]
[327937153,1716677446743,-172.854556,0.00026952,2]
[327937154,1716677446752,-184.966455,0.00026952,2]
[327937155,1716677446764,-181.271546,0.00026952,2]
[327937156,1716677446775,-226.87748,0.00026952,2]
[327937157,1716677446787,-201.742007,0.00026952,2]
[327937158,1716677447042,-658.938478,0.00026952,2]
[327937159,1716677447053,-500.0,0.00026971,2]
[327937160,1716677447063,-500.0,0.00026971,2]
[327937161,1716677447072,-151.11015037,0.00026983,2]
[327937162,1716677447082,-500.0,0.00027,2]
[327937163,1716677447091,-2227.36783513,0.00027,2]
[327937164,1716677447100,-832.0508297,0.00027,2]
[327937165,1716677447109,-600.0,0.00027,28]
[327937166,1716677447118,-168.31319421,0.00027028,2]
[327937167,1716677447128,-169.0,0.00027033,2]
[327937168,1716677447137,-973.0,0.00027033,2]
[327937169,1716677447146,-357.0,0.00027033,2]
[327937170,1716677447156,-695.527,0.00027033,2]
[327937171,1716677447165,-462.722,0.00027033,2]
[327937172,1716677447174,-440.0,0.00027033,2]
[327937173,1716677447183,-613.0,0.00027033,2]
[327937174,1716677447192,-1332.963,0.00027033,2]
[327937175,1716677447201,-445.0,0.00027033,2]
[327937176,1716677447211,-809.0,0.00027033,2]
[327937177,1716677447220,-2395.0,0.00027033,2]
[327937178,1716677447229,-215.0,0.00027033,2]
[327937179,1716677447239,-1138.0,0.00027033,2]
[327937180,1716677447249,-296.0,0.00027033,2]
[327937181,1716677447258,-261.361,0.00027033,2]
[327937182,1716677447267,-261.361,0.00027033,2]
[327937183,1716677447278,-37920.0,0.00027033,2]
[327937184,1716677447289,-201.0,0.00027033,2]
[327937185,1716677447298,-150.254,0.00027033,2]
[327937186,1716677447309,-289.0,0.00027033,2]
[327937187,1716677447318,-150.0,0.00027033,2]
[327937188,1716677447327,-1464.0,0.00027033,2]
[327937189,1716677447336,-264.847,0.00027033,2]
[327937190,1716677447346,-150.0,0.00027033,2]
[327937191,1716677447356,-150.0,0.00027033,2]
[327937192,1716677447365,-5758.0,0.00027033,2]
[327937193,1716677447375,-195.472,0.00027033,2]
[327937194,1716677447384,-238.188,0.00027033,2]
[327937195,1716677447394,-492.07492243,0.00027054,2]
[327937196,1716677447403,-150.0,0.000271,2]
[327937197,1716677447412,-200.0,0.00027123,2]
[327937198,1716677447422,-270.342614,0.00027123,2]
[327937199,1716677447431,-155.04441625,0.00027127,2]
[327937200,1716677447440,-153.46461402,0.0002714,2]
[327937201,1716677447450,-201.69520226,0.00027158,2]
[327937202,1716677447460,-200.0,0.00027158,2]
[327937203,1716677447469,-1000.0,0.00027158,2]
[327937204,1716677447479,-500.0,0.00027158,2]
[327937205,1716677447489,-200.0,0.00027158,2]
[327937206,1716677447499,-602.93382204,0.0002717,2]
[327937207,1716677447509,-500.0,0.0002717,2]
[327937208,1716677447519,-152.41767349,0.00027189,2]
[327937209,1716677447529,-151.11015037,0.00027189,2]
[327937210,1716677447539,-184.71,0.00027205,2]
[327937211,1716677447548,-466.53927343,0.00027222,2]
[327937212,1716677447557,-155.04441625,0.0002724,2]
[327937213,1716677447566,-900.0,0.00027245,2]
[327937214,1716677447576,-800.0,0.00027245,2]
[327937215,1716677447586,-155.04441625,0.00027262,2]
[327937216,1716677447595,-500.0,0.00027276,2]
[327937217,1716677447604,-670.75883992,0.00027281,7]
[327937218,1716677447614,-194.053212,0.00027289,2]
[327937219,1716677447624,-296.712223,0.00027289,2]
[327937220,1716677447634,-403.703758,0.00027289,2]
[327937221,1716677447644,-340.31622,0.00027289,2]
[327937222,1716677447654,-705.542347,0.00027289,2]
[327937223,1716677447664,-644.391327,0.00027289,2]
[327937224,1716677447673,-172.854556,0.00027289,2]
[327937225,1716677447682,-226.87748,0.00027289,2]
[327937226,1716677447692,-658.938478,0.00027289,2]
[327937227,1716677447702,-2215.51,0.000273,2]
[327937228,1716677447712,-2149.91,0.000273,2]
[327937229,1716677447722,-500.0,0.0002737,2]
[327937230,1716677447732,-740.03977674,0.0002739,2]
[327937231,1716677447742,-10000.0,0.0002739,2]
[327937232,1716677447752,-155.39472073,0.00027395,2]
[327937233,1716677447761,-300.0,0.00027397,2]
[327937234,1716677447771,-151.0,0.00027397,7]
[327937235,1716677447780,-705.66,0.00027397,10]
[327937236,1716677447790,-151.0,0.00027397,7]
[327937237,1716677447800,-486.0,0.000274,11]
[327937238,1716677447810,-344.0,0.000274,2]
[327937239,1716677447819,-688.0,0.000274,2]
[327937240,1716677447829,-189.0,0.000274,11]
[327937241,1716677447839,-160.0,0.000274,2]
[327937242,1716677447848,-200.0,0.000274,2]
[327937243,1716677447858,-150.0,0.000274,5]
[327937244,1716677447868,-153.39,0.000274,2]
[327937245,1716677447877,-153.39,0.000274,2]
[327937246,1716677447887,-153.39,0.000274,2]
[327937247,1716677447896,-153.39,0.000274,2]
[327937248,1716677447906,-153.39,0.000274,2]
[327937249,1716677447915,-153.39,0.000274,2]
[327937250,1716677447924,-153.39,0.000274,2]
[327937251,1716677447933,-152.278991,0.00027401,2]
[327937252,1716677447943,-186.053426,0.00027401,2]
[327937253,1716677447952,-156.312705,0.00027401,2]
[327937254,1716677447962,-154.04829031,0.00027407,2]
[327937255,1716677447971,-16383.73524407,0.00027422,2]
[327937256,1716677447980,-155.04441625,0.00027422,2]
[327937257,1716677447991,-168.31319421,0.00027453,2]
[327937258,1716677448000,-2360.0,0.0002746,15]
[327937259,1716677448010,-500.0,0.0002747,2]
[327937260,1716677448019,-2360.0,0.0002747,15]
[327937261,1716677448028,-168.31319421,0.00027475,2]
[327937262,1716677448039,-2360.0,0.0002748,15]
[327937263,1716677448049,-200.91,0.0002748,15]
[327937264,1716677448060,-1065.84872037,0.00027487,2]
[327937265,1716677448070,-1141.48354162,0.00027487,2]
[327937266,1716677448080,-151.0,0.00027488,7]
[327937267,1716677448090,-56127.8742069,0.00027489,2]
[327937268,1716677448099,-840.91343733,0.00027489,2]
[327937269,1716677448110,-280.21535,0.00027489,2]
[327937270,1716677448120,-155.0,0.00027494,2]
[327937271,1716677448129,-156.00929946,0.00027494,2]
[327937272,1716677448139,-1227.04758271,0.00027494,2]
[327937273,1716677448152,-229.17922046,0.00027494,2]
[327937274,1716677448162,-9156.94527158,0.00027494,2]
[327937275,1716677448171,-156.04573926,0.00027494,2]
[327937276,1716677448180,-258.14864821,0.00027494,2]
[327937277,1716677448192,-155.50545843,0.00027494,2]
[327937278,1716677448203,-244.40489581,0.00027495,2]
[327937279,1716677448213,-208.21094231,0.00027496,2]
[327937280,1716677448224,-5876.79869969,0.00027496,2]
[327937281,1716677448233,-151.0,0.00027496,7]
[327937282,1716677448243,-151.0,0.00027496,7]
[327937283,1716677448253,-151.0,0.00027496,7]
[327937284,1716677448263,-151.0,0.00027496,7]
[327937285,1716677448273,-151.0,0.00027496,7]
[327937286,1716677448282,-151.0,0.00027496,7]
[327937287,1716677448292,-151.0,0.00027496,7]
[327937288,1716677448301,-151.0,0.00027496,7]
[327937289,1716677448311,-151.0,0.00027496,7]
[327937290,1716677448320,-151.0,0.00027496,7]
[327937291,1716677448330,-152.808091,0.00027496,7]
[327937292,1716677448340,-151.0,0.00027496,7]
[327937293,1716677448350,-151.0,0.00027496,7]
[327937294,1716677448360,-151.0,0.00027496,7]
[327937295,1716677448370,-151.0,0.00027496,7]
[327937296,1716677448379,-151.0,0.00027496,7]
[327937297,1716677448389,-151.0,0.00027496,7]
[327937298,1716677448399,-8276.9144,0.00027496,2]
[327937299,1716677448408,-151.0,0.00027496,7]
[327937300,1716677448417,-151.0,0.00027496,7]
[327937301,1716677448427,-151.0,0.00027496,7]
[327937302,1716677448436,-151.0,0.00027496,7]
[327937303,1716677448446,-151.0,0.00027496,7]
[327937304,1716677448455,-151.0,0.00027496,7]
[327937305,1716677448464,-159.256748,0.00027496,7]
[327937306,1716677448474,-159.256748,0.00027496,7]
[327937307,1716677448483,-3488.4267403,0.00027496,2]
[327937308,1716677448495,-151.0,0.00027496,7]
[327937309,1716677448505,-150.0,0.00027499,10]
[327937310,1716677448515,-156.18205979,0.00027499,2]
[327937311,1716677448524,-1446179.86915438,0.000275,5]
[327937312,1716677448543,-420.21293435,0.000275,5]
[327937313,1716677448594,-316.5041516,0.000275,5]
[327937314,1716677448606,-1959.61308135,0.000275,5]
[327937315,1716677448621,-4250.09585449,0.000275,5]
[327937316,1716677449126,-233.311236,0.00025,7]
[327937317,1716677449137,-1697.48772349,0.000275,5]
[327937318,1716677449149,-308.96436113,0.000275,5]
[327937319,1716677449750,-524.35130645,0.000275,5]
[327937320,1716677449762,-40808.6919988,0.000275,5]
[327937321,1716677449789,-69518.5039227,0.000275,5]
[327937322,1716677449843,-276.1093452,0.000275,5]
[327937323,1716677449924,-3464.02920357,0.000275,5]
[327937358,1716678632810,-179.69,0.00013973,2]
[327937359,1716678632820,-155.0,0.00015,2]
[327937360,1716678632830,-155.8065779,0.00017533,2]
[327937361,1716678632839,-5.8500551,0.00017533,2]
[327937362,1716678632850,-150.86202713,0.00017533,2]
[327937363,1716678632860,-469.6,0.00019433,2]
[327937364,1716678632870,-109.89333542,0.00019451,2]
[327937365,1716678632882,-40.10666458,0.00019451,2]
[327937366,1716678632891,-150.0,0.00019451,2]
[327937367,1716678632900,-499.99,0.00019452,2]
[327937368,1716678632910,-987.74797521,0.0002,2]
[327937369,1716678633002,-387.99999996,0.0002,2]
[327937370,1716678633014,-395.50061671,0.0002,2]
[327937371,1716678633027,-469.6,0.00020029,2]
[327937372,1716678633036,-179.69,0.00020447,2]
[327937373,1716678633045,-469.6,0.00020625,3]
[327937374,1716678633056,-1050.0,0.00021,2]
[327937375,1716678633066,-469.6,0.00021222,3]
[327937376,1716678633078,-746.92,0.00021532,2]
[327937377,1716678633088,-469.6,0.00021818,3]
[327937378,1716678633099,-151.11015037,0.00022206,2]
[327937379,1716678633110,-189.52496395,0.00022261,2]
[327937380,1716678633119,-151.11015037,0.00022372,2]
[327937381,1716678633130,-219.75,0.00022394,2]
[327937382,1716678633140,-154.36370949,0.00022396,2]
[327937383,1716678633152,-469.6,0.00022414,3]
[327937385,1716678633161,-151.4818748,0.00022622,2]
[327937387,1716678633171,-150.83389576,0.000227,2]
[327937388,1716678633180,-189.52496395,0.00022742,2]
[327937390,1716678633189,-10997.8808746,0.00022772,2]
[327937391,1716678633201,-12902.1191254,0.00022772,2]
[327937393,1716678633211,-160.09991448,0.00022814,2]
[327937394,1716678633220,-250.0,0.00022886,2]
[327937395,1716678633230,-189.52496395,0.00022892,2]
[327937396,1716678633239,-217.05,0.00022958,2]
[327937397,1716678633248,-469.6,0.00023011,3]
[327937398,1716678633258,-250.0,0.00023088,2]
[327937399,1716678633267,-155.28527463,0.00023124,2]
[327937400,1716678633277,-166.66666667,0.00023141,2]
[327937401,1716678633287,-155.28527463,0.00023322,2]
[327937402,1716678633296,-2000.0,0.0002345,2]
[327937403,1716678633305,-155.28527463,0.00023542,2]
[327937404,1716678633315,-151.4818748,0.0002356,2]
[327937405,1716678633325,-469.6,0.00023607,5]
[327937406,1716678633335,-250.0,0.0002364,2]
[327937407,1716678633344,-189.52496395,0.00023661,2]
[327937408,1716678633353,-155.28527463,0.00023663,2]
[327937409,1716678633362,-150.83389576,0.00023704,2]
[327937410,1716678633371,-746.92,0.00023796,2]
[327937411,1716678633380,-1000.0,0.00023814,2]
[327937412,1716678633389,-150.83389576,0.00023827,2]
[327937413,1716678633398,-155.04441625,0.00024019,2]
[327937414,1716678633408,-150.83389576,0.00024177,2]
[327937415,1716678633417,-153.02525692,0.00024182,2]
[327937416,1716678633427,-166.73621259,0.00024194,2]
[327937417,1716678633436,-469.6,0.00024203,5]
[327937418,1716678633446,-155.04441625,0.00024266,2]
[327937419,1716678633455,-79.27540294,0.00024455,2]
[327937420,1716678633467,-71.83474743,0.00024455,2]
[327937421,1716678633476,-151.11015037,0.00024516,2]
[327937422,1716678633485,-153.46461402,0.00024572,2]
[327937423,1716678633496,-153.46461402,0.00024579,2]
[327937424,1716678633505,-180.0,0.00024634,2]
[327937425,1716678633516,-160.85701506,0.00024764,2]
[327937426,1716678633525,-151.4818748,0.00024786,2]
[327937427,1716678633535,-469.6,0.00024799,5]
[327937428,1716678633544,-155.28527463,0.00024883,2]
[327937429,1716678633554,-151.4818748,0.00024992,2]
[327937430,1716678633564,-636.14971072,0.00024998,2]
[327937431,1716678633573,-301.39647648,0.00024999,2]
[327937432,1716678633582,-158.26245048,0.00024999,2]
[327937433,1716678633592,-166.66666666,0.00025193,2]
[327937434,1716678633601,-150.83389576,0.0002524,2]
[327937435,1716678633611,-189.52496395,0.00025273,2]
[327937436,1716678633621,-469.6,0.00025396,5]
[327937437,1716678633630,-151.4818748,0.0002544,2]
[327937438,1716678633640,-155.28527463,0.00025443,2]
[327937439,1716678633649,-153.3330513,0.00025457,2]
[327937440,1716678633659,-2250.0,0.000255,2]
[327937441,1716678633668,-160.85701506,0.00025521,2]
[327937442,1716678633678,-152.41767349,0.00025611,2]
[327937443,1716678633687,-150.83389576,0.00025694,2]
[327937444,1716678633697,-163.36,0.0002589,2]
[327937445,1716678633707,-151.4818748,0.00025904,2]
[327937446,1716678633717,-155.28527463,0.00025992,2]
[327937447,1716678633727,-746.92,0.0002606,2]
[327937448,1716678633736,-189.52496395,0.00026061,2]
[327937449,1716678633747,-155.78442441,0.00026154,2]
[327937450,1716678633756,-153.02525692,0.00026207,2]
[327937451,1716678633765,-150.83389576,0.00026238,2]
[327937452,1716678633775,-153.02525692,0.0002627,2]
[327937453,1716678633784,-153.46461402,0.00026294,2]
[327937454,1716678633794,-168.19220069,0.00026454,2]
[327937455,1716678633803,-150.83389576,0.00026485,2]
[327937456,1716678633812,-150.83389576,0.00026498,2]
[327937457,1716678634037,-1000.0,0.0002679,2]
[327937458,1716678634069,-189.52496395,0.00026807,2]
[327937459,1716678634079,-415.49,0.00026849,2]
[327937460,1716678634090,-865.45,0.00026849,2]
[327937461,1716678634100,-1000.0,0.00026852,2]
[327937462,1716678634108,-818.36728821,0.00026852,2]
[327937463,1716678634119,-9181.63271179,0.00026852,2]
[327937464,1716678634128,-5576.7230596,0.00026852,2]
[327937465,1716678634140,-602.7764404,0.00026852,2]
[327937466,1716678634150,-257.0726,0.00026852,2]
[327937467,1716678634159,-153.46461402,0.00026866,2]
[327937468,1716678634169,-179.69,0.00026921,2]
[327937469,1716678634179,-280.61755756,0.00026948,2]
[327937470,1716678634189,-1118.7289297,0.0002695,2]
[327937471,1716678634199,-1172.84352098,0.0002695,2]
[327937472,1716678634208,-237.406385,0.00026952,2]
[327937473,1716678634218,-195.882424,0.00026952,2]
[327937474,1716678634227,-455.135045,0.00026952,2]
[327937475,1716678634236,-365.632052,0.00026952,2]
[327937476,1716678634246,-11021.749754,0.00026952,2]
[327937477,1716678634256,-308.448734,0.00026952,2]
[327937478,1716678634265,-111.90163759,0.00026952,2]
[327937479,1716678634277,-9572.18652141,0.00026952,2]
[327937480,1716678634287,-151.11015037,0.00027106,2]
[327937481,1716678634297,-152.41767349,0.00027114,2]
[327937482,1716678634306,-151.11015037,0.00027134,2]
[327937483,1716678634320,-8282.78277682,0.00027188,2]
[327937484,1716678634331,-200.0,0.00027188,2]
[327937485,1716678634341,-491.24568026,0.000272,2]
[327937486,1716678634353,-450.037073,0.000272,2]
[327937487,1716678634383,-127.71135619,0.000272,2]
[327937488,1716678634392,-621.84864381,0.000272,2]
[327937489,1716678634404,-808.465,0.000272,2]
[327937490,1716678634415,-1069.68635619,0.000272,2]
[327937491,1716678634424,-466.76988672,0.000272,2]
[327937492,1716678634435,-4000.0,0.000272,2]
[327937493,1716678634446,-6947.77168517,0.000272,2]
[327937496,1716678637645,-4938.17517394,0.000272,2]
[327937497,1716678637656,-373.23141874,0.00027224,2]
[327937498,1716678637666,-157.51349002,0.0002724,2]
[327937499,1716678637676,-200.0,0.00027246,2]
[327937500,1716678637686,-500.0,0.00027246,2]
[327937501,1716678637695,-200.0,0.00027246,2]
[327937502,1716678637705,-150.682,0.00027284,2]
[327937503,1716678637715,-152.872,0.00027284,2]
[327937504,1716678637725,-4763.0,0.00027284,2]
[327937505,1716678637734,-357.0,0.00027284,2]
[327937506,1716678637744,-439.0,0.00027284,2]
[327937507,1716678637755,-444.0,0.00027284,2]
[327937508,1716678637764,-809.0,0.00027284,2]
[327937509,1716678637773,-23630.2660525,0.00027284,2]
[327937510,1716678637785,-2199.76057497,0.00027284,2]
[327937511,1716678637801,-12041.97337253,0.00027284,2]
[327937512,1716678637812,-237.406385,0.00027289,2]
[327937513,1716678637821,-195.882424,0.00027289,2]
[327937514,1716678637832,-455.135045,0.00027289,2]
[327937515,1716678637842,-365.632052,0.00027289,2]
[327937516,1716678637852,-9748.2230464,0.00027289,2]
[327937517,1716678637916,-441.97673376,0.00027289,2]
[327937518,1716678637928,-831.54997384,0.00027289,2]
[327937519,1716678637938,-308.448734,0.00027289,2]
[327937520,1716678637947,-3879.45071216,0.00027289,2]
[327937522,1716678638079,-5804.63744684,0.00027289,2]
[327937523,1716678638089,-41185.82592297,0.000273,2]
[327937524,1716678638119,-25329.54295773,0.000273,2]
[327937597,1716678641654,-1708.81914412,0.000273,2]
[327937598,1716678641667,-3120.86177945,0.000273,2]
[327937599,1716678641679,-841.31441599,0.000273,2]
[327937608,1716678643710,-1735.382388,0.000273,2]
[327937609,1716678643723,-2710.72785,0.000273,2]
[327937613,1716678647932,-3006.29846574,0.000273,2]
[327937614,1716678648160,-2326.2370235,0.000273,2]
[327937615,1716678648172,-1696.09,0.000273,2]
[327937636,1716679035644,5000.0,0.00031,120]
[327937646,1716679619167,-212.27965564,0.00013944,2]
[327937676,1716679835154,-1206.79205888,0.0001393,2]
[327937677,1716679835164,-529.70294517,0.00013931,2]
[327937678,1716679835174,-1206.19504584,0.00013931,2]
[327937679,1716679835187,-335.55356,0.00013931,2]
[327937680,1716679835199,-1378.72849133,0.00013931,2]
[327937681,1716679835208,-365.73198455,0.00013931,2]
[327937682,1716679835218,-505.42486748,0.00013932,2]
[327937683,1716679835227,-1791.17000662,0.00013933,2]
[327937684,1716679835237,-337.29571537,0.00013933,2]
[327937685,1716679835247,-300.0,0.00013934,2]
[327937686,1716679835256,-150.0,0.00013934,2]
[327937687,1716679835265,-516.73760143,0.00013972,2]
[327937688,1716679835275,-152.32,0.00013973,2]
[327937689,1716679835286,-420.0,0.00015266,2]
[327937690,1716679835295,-155.0,0.00015277,2]
[327937691,1716679835306,-150.0,0.00015327,2]
[327937692,1716679835315,-279.0,0.00016726,2]
[327937693,1716679835325,-1227.82126936,0.00016738,2]
[327937694,1716679835335,-2908.0658939,0.0001726,2]
[327937695,1716679835370,-889.15149544,0.0001726,2]
[327937696,1716679835382,-2872.14352236,0.0001726,2]
[327937697,1716679835394,-1251.1990883,0.0001726,2]
[327937698,1716679835403,-191.95,0.0001726,2]
[327937699,1716679835412,-935.92,0.00019726,2]
[327937700,1716679835422,-2928.82873043,0.0002,2]
[327937701,1716679835432,-2926.0,0.0002,2]
[327937702,1716679835442,-155.0,0.0002,2]
[327937703,1716679835451,-2548.73780077,0.00020475,2]
[327937704,1716679835461,-1050.0,0.00021,2]
[327937705,1716679835470,-833.68,0.00021292,2]
[327937706,1716679835479,-151.0,0.00021714,3]
[327937707,1716679835489,-152.39450076,0.00022177,2]
[327937708,1716679835499,-152.39450076,0.00022353,2]
[327937709,1716679835508,-151.0,0.00022365,3]
[327937710,1716679835518,-152.39450076,0.00022398,2]
[327937711,1716679835527,-152.39450076,0.00022402,2]
[327937712,1716679835539,-153.5746564,0.00022481,2]
[327937713,1716679835548,-157.51349002,0.00022602,2]
[327937714,1716679835558,-500.0,0.00022613,2]
[327937715,1716679835568,-250.0,0.00022625,2]
[327937716,1716679835578,-153.51436699,0.00022696,2]
[327937717,1716679835588,-151.4818748,0.0002279,2]
[327937718,1716679835598,-157.64683931,0.00022818,2]
[327937719,1716679835608,-500.0,0.00022902,2]
[327937720,1716679835618,-151.4818748,0.0002295,2]
[327937721,1716679835627,-155.74822283,0.00022986,2]
[327937722,1716679835637,-1100.0,0.00023,2]
[327937723,1716679835647,-152.39450076,0.00023016,2]
[327937724,1716679835656,-151.0,0.00023017,3]
[327937725,1716679835665,-154.06640758,0.00023074,2]
[327937726,1716679835675,-670.15,0.00023097,2]
[327937727,1716679835684,-153.5746564,0.00023133,2]
[327937728,1716679835695,-183.12,0.00023147,2]
[327937729,1716679835709,-152.39450076,0.00023175,2]
[327937730,1716679835718,-200.0,0.00023217,2]
[327937731,1716679835728,-157.64683931,0.00023258,2]
[327937732,1716679835739,-250.0,0.00023333,2]
[327937733,1716679835748,-250.0,0.00023346,2]
[327937734,1716679835758,-1000.0,0.00023377,2]
[327937735,1716679835768,-155.28527464,0.00023422,2]
[327937736,1716679835778,-152.39450076,0.00023437,2]
[327937737,1716679835790,-219.03,0.0002345,2]
[327937738,1716679835799,-23900.0,0.00023477,2]
[327937739,1716679835809,-1271.76,0.00023482,2]
[327937740,1716679835820,-150.0,0.00023482,2]
[327937741,1716679835830,-833.68,0.00023556,2]
[327937742,1716679835840,-151.4818748,0.00023744,2]
[327937743,1716679835849,-155.0,0.00023848,2]
[327937744,1716679835859,-1577.17,0.00023867,2]
[327937745,1716679835869,-151.4818748,0.00023889,2]
[327937746,1716679835879,-157.51349002,0.00023902,2]
[327937747,1716679835888,-154.36370949,0.00023904,2]
[327937748,1716679835898,-433.26102806,0.00024,2]
[327937749,1716679835908,-472.59666178,0.00024113,2]
[327937750,1716679835917,-153.5746564,0.00024115,2]
[327937751,1716679835927,-157.64683931,0.00024293,2]
[327937752,1716679835937,-152.39450076,0.00024366,2]
[327937753,1716679835947,-157.64683931,0.00024396,2]
[327937754,1716679835956,-153.51436699,0.00024492,2]
[327937755,1716679835966,-747.22403344,0.00024568,2]
[327937756,1716679835975,-155.28527464,0.00024705,2]
[327937757,1716679835984,-151.4818748,0.00024722,2]
[327937758,1716679835994,-152.41767349,0.00024789,2]
[327937759,1716679836004,-157.64683931,0.00024802,2]
[327937760,1716679836013,-157.64683931,0.00024894,2]
[327937761,1716679836023,-155.04441625,0.00024956,2]
[327937762,1716679836033,-155.28527464,0.00024991,2]
[327937763,1716679836042,-927.24854719,0.00025,2]
[327937764,1716679836052,-1150.0,0.00025,2]
[327937765,1716679836061,-155.0,0.00025353,2]
[327937766,1716679836071,-153.51436699,0.00025354,2]
[327937767,1716679836080,-157.64683931,0.00025369,2]
[327937768,1716679836091,-157.64683931,0.0002538,2]
[327937769,1716679836100,-151.4818748,0.00025398,2]
[327937770,1716679836110,-399.169476,0.000255,2]
[327937771,1716679836119,-153.51436699,0.00025713,2]
[327937772,1716679836129,-155.28527464,0.00025746,2]
[327937773,1716679836139,-833.68,0.00025819,2]
[327937774,1716679836150,-180.0,0.00025831,2]
[327937775,1716679836159,-670.15,0.00025836,2]
[327937776,1716679836169,-163.36,0.0002589,2]
[327937777,1716679836178,-157.64683931,0.00025953,2]
[327937778,1716679836188,-157.855,0.00025953,2]
[327937779,1716679836197,-157.64683931,0.0002612,2]
[327937780,1716679836207,-157.64683931,0.00026187,2]
[327937781,1716679836216,-1000.0,0.00026299,2]
[327937782,1716679836225,-2696.0,0.000263,2]
[327937783,1716679836234,-162.205569,0.00026301,2]
[327937784,1716679836244,-541.4599311,0.00026399,2]
[327937785,1716679836254,-210.8378,0.000264,2]
[327937786,1716679836264,-467.8027,0.000264,2]
[327937787,1716679836274,-257.0726,0.000264,2]
[327937788,1716679836285,-710.0002,0.000264,2]
[327937789,1716679836297,-14717.44507122,0.000264,2]
[327937790,1716679836307,-10570.58830569,0.000264,2]
[327937791,1716679836316,-3118.3,0.000264,2]
[327937792,1716679836326,-3336.3254,0.000264,2]
[327937793,1716679836336,-170.38049411,0.00026427,2]
[327937794,1716679836346,-154.08142137,0.00026485,2]
[327937795,1716679836355,-162.17564825,0.00026498,2]
[327937796,1716679836365,-155.0,0.00026498,2]
[327937797,1716679836375,-267.9960928,0.00026498,2]
[327937798,1716679836385,-500.0,0.000265,2]
[327937799,1716679836395,-500.0,0.000265,2]
[327937800,1716679836405,-500.0,0.000265,2]